lending/lending_fUSD_20240219
["ID","MTS","AMOUNT","RATE_DAILY","PERIOD"]
[314424490,1708331460764,-3996.7238081,0.00039973,2]
[314424491,1708331460773,-5026.72884285,0.0003998,2]
[314424492,1708331460783,-500.0,0.00039981,4]
[314424493,1708331460793,-231.52190759,0.00039982,2]
[314424494,1708331460803,-822.06,0.00039985,2]
[314424495,1708331460813,-200.0,0.00039987,6]
[314424496,1708331460826,-200.0,0.00039987,5]
[314424497,1708331460837,-500.0,0.0003999,4]
[314424498,1708331460846,-1747.112516,0.00039992,14]
[314424499,1708331460856,-1747.112516,0.00039992,14]
[314424500,1708331460866,-336.234787,0.00039992,14]
[314424501,1708331460875,-336.234784,0.00039992,14]
[314424502,1708331460886,-5960.41872585,0.00039992,2]
[314424503,1708331460896,-415.80331766,0.00039994,2]
[314424504,1708331460905,-299.96648964,0.00039994,2]
[314424505,1708331460915,-875399.35143687,0.00039995,2]
[314424506,1708331460925,-151.0,0.00039995,14]
[314424507,1708331460935,-218.725623,0.00039995,14]
[314424508,1708331460945,-218.725623,0.00039995,14]
[314424509,1708331460955,-164.555975,0.00039995,14]
[314424510,1708331460964,-164.555975,0.00039995,14]
[314424511,1708331460976,-151.0,0.00039995,14]
[314424512,1708331460985,-184.789088,0.00039995,7]
[314424513,1708331460996,-184.789088,0.00039995,7]
[314424514,1708331461006,-245.831503,0.00039995,14]
[314424515,1708331461016,-245.831503,0.00039995,14]
[314424516,1708331461026,-151.0,0.00039995,14]
[314424517,1708331461035,-301.285999,0.00039995,14]
[314424518,1708331461044,-151.0,0.00039995,14]
[314424519,1708331461054,-215.400571,0.00039995,14]
[314424520,1708331461064,-215.400571,0.00039995,14]
[314424521,1708331461073,-840.524964,0.00039995,14]
[314424522,1708331461083,-840.524964,0.00039995,14]
[314424523,1708331461093,-176.376743,0.00039995,14]
[314424524,1708331461102,-151.0,0.00039995,14]
[314424525,1708331461111,-176.376743,0.00039995,14]
[314424526,1708331461121,-303.213569,0.00039995,14]
[314424527,1708331461131,-303.213569,0.00039995,14]
[314424528,1708331461141,-185.966833,0.00039995,3]
[314424529,1708331461150,-185.966833,0.00039995,3]
[314424530,1708331461160,-905.530612,0.00039995,14]
[314424531,1708331461169,-558.619538,0.00039995,14]
[314424532,1708331461179,-558.619538,0.00039995,14]
[314424533,1708331461188,-407.651178,0.00039995,14]
[314424534,1708331461198,-407.651178,0.00039995,14]
[314424535,1708331461207,-151.0,0.00039995,14]
[314424536,1708331461217,-407.313882,0.00039995,14]
[314424537,1708331461227,-407.313882,0.00039995,14]
[314424538,1708331461237,-152.705371,0.00039995,14]
[314424539,1708331461247,-152.705371,0.00039995,14]
[314424540,1708331461256,-1747.112516,0.00039995,14]
[314424541,1708331461266,-1747.112516,0.00039995,14]
[314424542,1708331461277,-655.663594,0.00039995,2]
[314424543,1708331461287,-655.66359,0.00039995,2]
[314424544,1708331461297,-202.301092,0.00039995,14]
[314424545,1708331461306,-684.563752,0.00039995,14]
[314424546,1708331461315,-202.301085,0.00039995,14]
[314424547,1708331461325,-684.563749,0.00039995,14]
[314424548,1708331461335,-151.0,0.00039995,14]
[314424549,1708331461344,-170.863115,0.00039995,14]
[314424550,1708331461354,-170.863113,0.00039995,14]
[314424551,1708331461363,-311.416744,0.00039995,14]
[314424552,1708331461372,-311.416749,0.00039995,14]
[314424553,1708331461382,-393.990139,0.00039995,14]
[314424554,1708331461391,-393.990137,0.00039995,14]
[314424555,1708331461400,-215.851779,0.00039995,14]
[314424556,1708331461410,-151.0,0.00039995,14]
[314424557,1708331461419,-215.851776,0.00039995,14]
[314424558,1708331461428,-320.345835,0.00039995,14]
[314424559,1708331461438,-320.345828,0.00039995,14]
[314424560,1708331461447,-322.385201,0.00039995,14]
[314424561,1708331461456,-322.385206,0.00039995,14]
[314424562,1708331461465,-1052.44782,0.00039995,14]
[314424563,1708331461476,-1052.44781179,0.00039995,14]
[314424564,1708331461485,-4493.148202,0.00039995,14]
[314424565,1708331461494,-151.0,0.00039995,14]
[314424566,1708331461504,-49939.14434866,0.00039995,2]
[314424567,1708331461514,-11920.8374517,0.00039997,2]
[314424568,1708331461523,-429.11942121,0.00039998,2]
[314424569,1708331461532,-70010.58563019,0.00039999,2]
[314424570,1708331461542,-229.01176041,0.00039999,31]
[314424571,1708331461551,-500.0,0.00039999,31]
[314424572,1708331461560,-629.93237106,0.00039999,31]
[314424573,1708331461569,-238.50255906,0.00039999,31]
[314424574,1708331461578,-175.99310225,0.00039999,31]
[314424575,1708331461587,-643.25216221,0.00039999,31]
[314424576,1708331461596,-500.0,0.00039999,31]
[314424577,1708331461605,-500.0,0.00039999,31]
[314424578,1708331461615,-500.0,0.00039999,31]
[314424579,1708331461627,-500.0,0.00039999,31]
[314424580,1708331461636,-500.0,0.00039999,31]
[314424581,1708331461646,-500.0,0.00039999,31]
[314424582,1708331461655,-500.0,0.00039999,31]
[314424583,1708331461666,-500.0,0.00039999,31]
[314424584,1708331461675,-500.0,0.00039999,31]
[314424585,1708331461685,-500.0,0.00039999,31]
[314424586,1708331461694,-500.0,0.00039999,31]
[314424587,1708331461704,-500.0,0.00039999,31]
[314424588,1708331461713,-500.0,0.00039999,31]
[314424589,1708331461723,-332.19523231,0.00039999,31]
[314424590,1708331461733,-500.0,0.00039999,4]
[314424591,1708331461742,-415.80331766,0.00039999,2]
[314424592,1708331461751,-299.96648964,0.00039999,2]
[314424593,1708331461760,-415.80331766,0.00039999,2]
[314424594,1708331461769,-299.96648964,0.00039999,2]
[314424595,1708331461778,-100000.0,0.0004,10]
[314424596,1708331461787,-50299.15109374,0.0004,7]
[314424597,1708331461797,-4983.0,0.0004,10]
[314424598,1708331461806,-1777.84947156,0.0004,3]
[314424599,1708331461815,-695.80553366,0.0004,3]
[314424600,1708331461824,-16433.01168097,0.0004,2]
[314424601,1708331461832,-4792.21877274,0.0004,2]
[314424602,1708331461842,-746.89358345,0.0004,7]
[314424603,1708331461851,-739.38202005,0.0004,2]
[314424604,1708331461861,-503.09,0.0004,2]
[314424605,1708331461870,-169.18158748,0.0004,3]
[314424606,1708331461879,-670.45567179,0.0004,30]
[314424607,1708331462014,-561251.29725417,0.0004,2]
[314424608,1708331462023,-9073.63224358,0.0004,30]
[314424609,1708331462033,-310.74433065,0.0004,30]
[314424610,1708331462043,-500.0,0.0004,2]
[314424611,1708331462056,-267948.53903486,0.0004,2]
[314424612,1708331462065,-254.48388225,0.0004,2]
[314424613,1708331462075,-100210.08046101,0.0004,2]
[314424614,1708331462084,-69433.75116239,0.0004,2]
[314424615,1708331462093,-23837.7793657,0.0004,9]
[314424616,1708331462102,-1005.0,0.0004,2]
[314424617,1708331462112,-41059.10230628,0.0004,2]
[314424618,1708331462120,-19290.29871005,0.0004,2]
[314424619,1708331462131,-614.39220439,0.0004,4]
[314424620,1708331462139,-233697.54521403,0.0004,3]
[314424621,1708331462149,-30612.52625435,0.0004,2]
[314424622,1708331462159,-1612.57503484,0.0004,7]
[314424623,1708331462168,-800.9410993,0.0004,14]
[314424624,1708331462178,-500.0,0.0004,2]
[314424625,1708331462187,-2155.70081018,0.0004,2]
[314424626,1708331462196,-350.0,0.0004,30]
[314424627,1708331462205,-1496.59599113,0.0004,10]
[314424628,1708331462215,-10268.67487157,0.0004,2]
[314424629,1708331462225,-898.63,0.0004,12]
[314424630,1708331462234,-4157.0,0.0004,10]
[314424631,1708331462243,-394.14063134,0.0004,4]
[314424632,1708331462253,-500.0,0.0004,6]
[314424633,1708331462262,-500.0,0.0004,6]
[314424634,1708331462271,-500.0,0.0004,6]
[314424635,1708331462280,-500.0,0.0004,6]
[314424636,1708331462289,-21510.15640701,0.0004,8]
[314424637,1708331462298,-1000.0,0.0004,2]
[314424638,1708331462308,-282301.07905462,0.0004,30]
[314424639,1708331462317,-150.0,0.0004,2]
[314424640,1708331462327,-500.0,0.0004,6]
[314424641,1708331462335,-500.0,0.0004,6]
[314424642,1708331462345,-500.0,0.0004,6]
[314424643,1708331462353,-571.0394754,0.0004,6]
[314424644,1708331462362,-1439.458,0.0004,14]
[314424645,1708331462371,-255.0,0.0004,12]
[314424646,1708331462381,-500.0,0.0004,14]
[314424647,1708331462390,-255.0,0.0004,12]
[314424648,1708331462399,-300.0,0.0004,18]
[314424649,1708331462408,-2245.67032595,0.0004,3]
[314424650,1708331462417,-151.0,0.0004,14]
[314424651,1708331462426,-151.0,0.0004,14]
[314424652,1708331462435,-151.0,0.0004,14]
[314424653,1708331462444,-218.725623,0.0004,14]
[314424654,1708331462453,-218.725623,0.0004,14]
[314424655,1708331462462,-218.725623,0.0004,14]
[314424656,1708331462471,-218.725623,0.0004,14]
[314424657,1708331462481,-218.725623,0.0004,14]
[314424658,1708331462490,-218.725623,0.0004,14]
[314424659,1708331462499,-164.555975,0.0004,14]
[314424660,1708331462508,-164.555975,0.0004,14]
[314424661,1708331462517,-164.555975,0.0004,14]
[314424662,1708331462526,-164.555975,0.0004,14]
[314424663,1708331462536,-164.555975,0.0004,14]
[314424664,1708331462545,-629.522508,0.0004,10]
[314424665,1708331462553,-164.555975,0.0004,14]
[314424666,1708331462563,-255.0,0.0004,12]
[314424667,1708331462572,-151.0,0.0004,14]
[314424668,1708331462581,-151.0,0.0004,14]
[314424669,1708331462590,-151.0,0.0004,14]
[314424670,1708331462600,-184.789088,0.0004,7]
[314424671,1708331462612,-184.789088,0.0004,7]
[314424672,1708331462621,-184.789088,0.0004,7]
[314424673,1708331462631,-184.789088,0.0004,7]
[314424674,1708331462640,-184.789088,0.0004,7]
[314424675,1708331462650,-184.789079,0.0004,7]
[314424676,1708331462659,-245.831503,0.0004,14]
[314424677,1708331462669,-245.831503,0.0004,14]
[314424678,1708331462678,-245.831503,0.0004,14]
[314424679,1708331462687,-245.831498,0.0004,14]
[314424680,1708331462696,-151.0,0.0004,14]
[314424681,1708331462705,-151.0,0.0004,14]
[314424682,1708331462715,-151.0,0.0004,14]
[314424683,1708331462725,-151.0,0.0004,14]
[314424684,1708331462735,-255.0,0.0004,12]
[314424685,1708331462744,-215.400571,0.0004,14]
[314424686,1708331462756,-215.400571,0.0004,14]
[314424687,1708331462765,-215.400571,0.0004,14]
[314424688,1708331462774,-215.400576,0.0004,14]
[314424689,1708331462783,-840.524964,0.0004,14]
[314424690,1708331462792,-840.524964,0.0004,14]
[314424691,1708331462802,-840.524964,0.0004,14]
[314424692,1708331462812,-840.524964,0.0004,14]
[314424693,1708331462821,-176.376743,0.0004,14]
[314424694,1708331462831,-176.376743,0.0004,14]
[314424695,1708331462840,-151.0,0.0004,14]
[314424696,1708331462850,-151.0,0.0004,14]
[314424697,1708331462860,-176.376743,0.0004,14]
[314424698,1708331462869,-176.376734,0.0004,14]
[314424699,1708331462878,-303.213569,0.0004,14]
[314424700,1708331462887,-303.213569,0.0004,14]
[314424701,1708331462897,-303.213569,0.0004,14]
[314424702,1708331462906,-303.213565,0.0004,14]
[314424703,1708331462915,-185.966833,0.0004,3]
[314424704,1708331462924,-185.966833,0.0004,3]
[314424705,1708331462934,-185.966833,0.0004,3]
[314424706,1708331462943,-185.966824,0.0004,3]
[314424707,1708331462952,-905.530612,0.0004,14]
[314424708,1708331462962,-905.530613,0.0004,14]
[314424709,1708331462971,-558.619538,0.0004,14]
[314424710,1708331462981,-558.619538,0.0004,14]
[314424711,1708331462991,-558.619538,0.0004,14]
[314424712,1708331463003,-407.651178,0.0004,14]
[314424713,1708331463022,-558.619546,0.0004,14]
[314424714,1708331463040,-407.651178,0.0004,14]
[314424715,1708331463051,-407.651178,0.0004,14]
[314424716,1708331463067,-407.651174,0.0004,14]
[314424717,1708331463083,-179.657724,0.0004,14]
[314424718,1708331463099,-407.313882,0.0004,14]
[314424719,1708331463113,-407.313882,0.0004,14]
[314424720,1708331463126,-407.313882,0.0004,14]
[314424721,1708331463140,-407.313873,0.0004,14]
[314424722,1708331463153,-152.705371,0.0004,14]
[314424723,1708331463169,-152.705371,0.0004,14]
[314424724,1708331463182,-152.705371,0.0004,14]
[314424725,1708331463194,-152.705362,0.0004,14]
[314424726,1708331463209,-255.0,0.0004,12]
[314424727,1708331463226,-1747.112516,0.0004,14]
[314424728,1708331463239,-1747.112509,0.0004,14]
[314424729,1708331463253,-4000.0,0.0004,10]
[314424730,1708331463268,-255.0,0.0004,12]
[314424731,1708331463283,-702.222049,0.0004,2]
[314424732,1708331463299,-5006.82,0.0004,2]
[314424733,1708331463313,-151.0,0.0004,2]
[314424734,1708331463324,-231.50230206,0.0004,2]
[314424735,1708331463335,-255.0,0.0004,12]
[314424736,1708331463350,-303.96,0.0004,2]
[314424737,1708331463362,-1000.0,0.0004,2]
[314424738,1708331463376,-150.0,0.00040013,2]
[314424739,1708331463387,-151.0,0.00040015,7]
[314424740,1708331463400,-3093.25878991,0.0004002,9]
[314424741,1708331463412,-150.0,0.00040035,2]
[314424742,1708331463425,-2000.0,0.00040041,2]
[314424743,1708331463437,-200.0,0.00040041,2]
[314424744,1708331463450,-174.04,0.00040044,2]
[314424745,1708331463462,-253.07,0.0004006,2]
[314424746,1708331463474,-300.0,0.0004006,2]
[314424747,1708331463487,-749.08226,0.0004006,2]
[314424748,1708331463499,-151.40588202,0.00040084,2]
[314424749,1708331463512,-150.0,0.00040087,2]
[314424750,1708331463523,-1308.63,0.000401,12]
[314424751,1708331463535,-151.0,0.000401,11]
[314424752,1708331463548,-751.7445652,0.000401,2]
[314424753,1708331463560,-150.0,0.00040103,2]
[314424754,1708331463572,-156.65,0.00040104,2]
[314424755,1708331463585,-150.0,0.00040112,2]
[314424756,1708331463597,-301.75168261,0.00040119,2]
[314424757,1708331463610,-5800.0,0.00040123,2]
[314424758,1708331463626,-5800.0,0.00040131,2]
[314424759,1708331463639,-154.32766975,0.00040134,7]
[314424760,1708331463651,-1500.0,0.00040135,2]
[314424761,1708331463664,-150.0,0.00040137,2]
[314424762,1708331463676,-5800.0,0.0004014,2]
[314424763,1708331463689,-1500.0,0.0004014,2]
[314424764,1708331463702,-415.80331766,0.00040142,3]
[314424765,1708331463716,-299.96648964,0.00040142,3]
[314424766,1708331463728,-5800.0,0.00040148,2]
[314424767,1708331463741,-151.0,0.00040152,7]
[314424768,1708331463753,-5800.0,0.00040157,2]
[314424769,1708331463766,-558.08,0.00040159,2]
[314424770,1708331463778,-5800.0,0.00040165,2]
[314424771,1708331463791,-5800.0,0.00040174,2]
[314424772,1708331463804,-472.0,0.00040181,5]
[314424773,1708331463816,-150.0,0.00040181,2]
[314424774,1708331463829,-150.0,0.00040181,2]
[314424775,1708331463841,-490.10473848,0.00040182,2]
[314424776,1708331463854,-5800.0,0.00040182,2]
[314424777,1708331463867,-22578.67226612,0.00040186,5]
[314424778,1708331463879,-5800.0,0.00040191,2]
[314424779,1708331463892,-5800.0,0.00040199,2]
[314424780,1708331463905,-150.0,0.000402,2]
[314424781,1708331463918,-150.0,0.00040205,2]
[314424782,1708331463931,-150.0,0.00040206,2]
[314424783,1708331463944,-5800.0,0.00040208,2]
[314424784,1708331463956,-500.0,0.0004021,2]
[314424785,1708331463969,-1536.62434998,0.00040214,2]
[314424786,1708331463983,-5800.0,0.00040216,2]
[314424787,1708331463997,-150.0,0.00040223,2]
[314424788,1708331464010,-1500.0,0.00040224,2]
[314424789,1708331464023,-5800.0,0.00040225,2]
[314424790,1708331464042,-5800.0,0.00040233,2]
[314424791,1708331464055,-5800.0,0.00040242,2]
[314424792,1708331464068,-174.04,0.00040244,2]
[314424793,1708331464082,-5800.0,0.0004025,2]
[314424794,1708331464095,-5800.0,0.00040259,2]
[314424795,1708331464108,-728.0,0.0004026,30]
[314424796,1708331464121,-150.0,0.00040264,2]
[314424797,1708331464134,-5800.0,0.00040267,2]
[314424798,1708331464146,-5800.0,0.00040276,2]
[314424799,1708331464158,-150.0,0.00040278,2]
[314424800,1708331464177,-150.0,0.00040284,2]
[314424801,1708331464190,-5800.0,0.00040284,2]
[314424802,1708331464203,-415.80331766,0.00040285,3]
[314424803,1708331464215,-299.96648964,0.00040285,3]
[314424804,1708331464229,-3093.25878991,0.00040289,9]
[314424805,1708331464242,-151.0,0.00040289,7]
[314424806,1708331464255,-5800.0,0.00040293,2]
[314424807,1708331464268,-11000.89649696,0.000403,2]
[314424808,1708331464280,-278.0,0.000403,29]
[314424809,1708331464290,-861.21575432,0.000403,14]
[314424810,1708331464299,-200.0,0.000403,15]
[314424811,1708331464309,-3000.0,0.000403,43]
[314424812,1708331464318,-150.0,0.000403,12]
[314424813,1708331464328,-185.035828,0.000403,12]
[314424814,1708331464337,-1907.055497,0.000403,12]
[314424815,1708331464346,-1991.917289,0.000403,12]
[314424816,1708331464534,-387.202635,0.000403,2]
[314424817,1708331464558,-151.749355,0.000403,15]
[314424818,1708331464568,-300.0,0.000403,6]
[314424819,1708331464577,-200.0,0.000403,2]
[314424820,1708331464587,-151.0,0.000403,12]
[314424821,1708331464596,-5800.0,0.00040301,2]
[314424822,1708331464607,-150.0,0.00040305,2]
[314424823,1708331464619,-150.0,0.00040308,2]
[314424824,1708331464628,-5800.0,0.0004031,2]
[314424825,1708331464638,-3000.0,0.0004031,43]
[314424826,1708331464649,-5800.0,0.00040318,2]
[314424827,1708331464658,-5800.0,0.00040327,2]
[314424828,1708331464667,-5800.0,0.00040335,2]
[314424829,1708331464677,-5800.0,0.00040344,2]
[314424830,1708331464687,-150.0,0.00040344,2]
[314424831,1708331464696,-580.13,0.00040349,2]
[314424832,1708331464705,-5800.0,0.00040352,2]
[314424833,1708331464715,-5800.0,0.00040361,2]
[314424834,1708331464724,-1500.0,0.00040363,2]
[314424835,1708331464736,-5800.0,0.00040369,2]
[314424836,1708331464746,-301.40907631,0.0004037,4]
[314424837,1708331464756,-1907.79281874,0.0004037,30]
[314424838,1708331464766,-242.44913933,0.0004037,30]
[314424839,1708331464775,-400.0,0.0004037,3]
[314424840,1708331464785,-400.0,0.0004037,3]
[314424841,1708331464795,-500.19255353,0.0004037,3]
[314424842,1708331464805,-300.0,0.0004037,3]
[314424843,1708331464814,-300.0,0.0004037,3]
[314424844,1708331464824,-300.36301457,0.0004037,3]
[314424845,1708331464834,-957.932669,0.0004037,30]
[314424846,1708331464845,-150.0,0.00040375,2]
[314424847,1708331464855,-7996.83658816,0.00040381,2]
[314424848,1708331464865,-651.33,0.00040386,2]
[314424849,1708331464875,-250.0,0.000404,4]
[314424850,1708331464885,-250.0,0.000404,4]
[314424851,1708331464895,-250.0,0.000404,4]
[314424852,1708331464905,-250.0,0.000404,4]
[314424853,1708331464915,-250.0,0.000404,4]
[314424854,1708331464925,-297.3,0.000404,4]
[314424855,1708331464935,-156.65,0.0004041,2]
[314424856,1708331464945,-151.0,0.00040426,7]
[314424857,1708331464955,-415.80331766,0.00040428,3]
[314424858,1708331464964,-299.96648964,0.00040428,3]
[314424859,1708331464974,-200.0,0.00040441,2]
[314424860,1708331464987,-174.04,0.00040443,2]
[314424861,1708331464996,-1879.25,0.00040449,2]
[314424862,1708331465007,-500.0,0.00040451,2]
[314424863,1708331465017,-1000.0,0.00040493,10]
[314424864,1708331465028,-1014.0,0.000405,2]
[314424865,1708331465038,-173.5,0.00040503,2]
[314424866,1708331465048,-500.13470779,0.00040515,30]
[314424867,1708331465059,-1096.08,0.00040533,2]
[314424868,1708331465070,-236.814935,0.00040548,14]
[314424869,1708331465081,-2958.44775568,0.00040557,2]
[314424870,1708331465092,-490.10473848,0.00040557,3]
[314424871,1708331465103,-14438.39487962,0.00040557,2]
[314424872,1708331465114,-871.2514398,0.00040557,2]
[314424873,1708331465124,-151.0,0.00040563,7]
[314424874,1708331465134,-415.80331766,0.0004057,3]
[314424875,1708331465144,-299.96648964,0.0004057,3]
[314424876,1708331465154,-3978.0,0.0004059,2]
[314424877,1708331465165,-2565.0,0.0004059,2]
[314424878,1708331465174,-200.0,0.000406,14]
[314424879,1708331465184,-150.0,0.000406,15]
[314424880,1708331465194,-3805.8658009,0.00040629,2]
[314424881,1708331465205,-3615.0077938,0.00040629,2]
[314424882,1708331465215,-174.04,0.00040642,2]
[314424883,1708331465225,-547.02770907,0.00040657,2]
[314424884,1708331465236,-546.59124424,0.00040657,2]
[314424885,1708331465245,-195237.6003101,0.00040657,2]
[314424886,1708331465257,-49939.14434866,0.00040657,2]
[314424887,1708331465266,-183.84887362,0.00040657,7]
[314424888,1708331465276,-207.23060306,0.00040657,7]
[314424889,1708331465287,-183.02636825,0.00040657,4]
[314424890,1708331465298,-40009.75117924,0.00040657,2]
[314424891,1708331465308,-1312.84,0.00040657,13]
[314424892,1708331465318,-1029.75374676,0.00040657,2]
[314424893,1708331465328,-1006.68963634,0.00040657,2]
[314424894,1708331465338,-88231.0,0.00040657,2]
[314424895,1708331465348,-12364.01358944,0.00040657,2]
[314424896,1708331465358,-1851.01615979,0.00040657,2]
[314424897,1708331465368,-947.13289149,0.00040657,2]
[314424898,1708331465377,-643.0,0.00040657,2]
[314424899,1708331465387,-934.57852649,0.00040657,2]
[314424900,1708331465396,-10847.54056562,0.00040657,2]
[314424901,1708331465406,-9449.8208239,0.00040657,2]
[314424902,1708331465415,-552.01301583,0.00040657,2]
[314424903,1708331465425,-1770.53245667,0.00040657,2]
[314424904,1708331465435,-168.20927507,0.00040657,2]
[314424905,1708331465445,-971.20231783,0.00040657,2]
[314424906,1708331465454,-1518.11610208,0.00040657,2]
[314424907,1708331465463,-18155.36883105,0.00040657,2]
[314424908,1708331465473,-13847.75538191,0.00040657,4]
[314424909,1708331465484,-10125.40349438,0.00040657,2]
[314424910,1708331465493,-1520.80319271,0.00040657,2]
[314424911,1708331465503,-21207.16634062,0.00040657,2]
[314424912,1708331465512,-13492.60825235,0.00040657,2]
[314424913,1708331465522,-1014.88178579,0.00040657,2]
[314424914,1708331465532,-10834.29785806,0.00040657,2]
[314424915,1708331465541,-9271.91246222,0.00040657,2]
[314424916,1708331465551,-1004.0,0.00040657,7]
[314424917,1708331465560,-6112.32302755,0.00040657,2]
[314424918,1708331465570,-2357.8794,0.00040657,7]
[314424919,1708331465580,-6300.0,0.00040657,8]
[314424920,1708331465590,-8613.0,0.00040657,7]
[314424921,1708331465599,-163.8609183,0.00040657,2]
[314424922,1708331465610,-104452.9309986,0.00040657,2]
[314424923,1708331465624,-115043.71769344,0.00040657,2]
[314424924,1708331465634,-219.52767301,0.00040657,2]
[314424925,1708331465644,-300.0,0.00040657,15]
[314424926,1708331465653,-6688.76371315,0.00040657,2]
[314424927,1708331465663,-2365841.45503645,0.00040657,10]
[314424928,1708331465673,-82001.51439948,0.00040657,2]
[314424929,1708331465682,-837.55895957,0.00040657,2]
[314424930,1708331465693,-4173.82863797,0.00040657,2]
[314424931,1708331465705,-571.11455006,0.00040657,2]
[314424932,1708331465715,-318.03394807,0.00040657,2]
[314424933,1708331465724,-5545.56163572,0.00040657,2]
[314424934,1708331465736,-8855.27919607,0.00040657,2]
[314424935,1708331465746,-550.0,0.00040657,2]
[314424936,1708331465756,-1396.47684312,0.00040657,2]
[314424937,1708331465766,-1006.90165067,0.00040657,2]
[314424938,1708331465775,-10319.14099677,0.00040657,2]
[314424939,1708331465785,-163291.39786424,0.00040657,2]
[314424940,1708331465795,-14415.67701222,0.00040657,2]
[314424941,1708331465804,-252.51685684,0.00040657,15]
[314424942,1708331465814,-6000.0,0.00040657,2]
[314424943,1708331465824,-1253.29654228,0.00040657,15]
[314424944,1708331465834,-4507.74294368,0.00040657,2]
[314424945,1708331465844,-10228.70861508,0.00040657,2]
[314424946,1708331465854,-343.60519928,0.00040657,2]
[314424947,1708331465864,-200.0,0.00040657,2]
[314424948,1708331465874,-629.87155131,0.00040657,2]
[314424949,1708331465883,-604.13118998,0.00040657,2]
[314424950,1708331465893,-207.14837962,0.00040657,2]
[314424951,1708331465903,-147956.0860933,0.00040657,2]
[314424952,1708331465912,-45552.65891926,0.00040657,2]
[314424953,1708331465922,-433.21146317,0.00040657,2]
[314424954,1708331465932,-20490.85865631,0.00040657,2]
[314424955,1708331465943,-1029.00275973,0.00040657,2]
[314424956,1708331465953,-2500.0,0.00040657,2]
[314424957,1708331465963,-558.82744767,0.00040657,2]
[314424958,1708331465974,-2295.40719132,0.00040657,2]
[314424959,1708331465984,-26810.31161461,0.00040657,2]
[314424960,1708331465993,-232.21794424,0.00040657,2]
[314424961,1708331466003,-1585.03931663,0.00040657,2]
[314424962,1708331466013,-519.99440484,0.00040657,2]
[314424963,1708331466022,-430230.69659374,0.00040657,2]
[314424964,1708331466033,-880.53555552,0.00040657,2]
[314424965,1708331466043,-26609.8900247,0.00040657,2]
[314424966,1708331466052,-9196.26175606,0.00040657,2]
[314424967,1708331466063,-464.68543883,0.00040657,2]
[314424968,1708331466072,-43614.01952172,0.00040657,4]
[314424969,1708331466082,-14683.30379394,0.00040657,2]
[314424970,1708331466092,-229.65443807,0.00040657,2]
[314424971,1708331466102,-2055.11029045,0.00040657,2]
[314424972,1708331466111,-389.67774764,0.00040657,2]
[314424973,1708331466121,-528.35272024,0.00040657,2]
[314424974,1708331466131,-351.46945725,0.00040657,2]
[314424975,1708331466141,-587.54169109,0.00040657,2]
[314424976,1708331466150,-9415.08193759,0.00040657,2]
[314424977,1708331466160,-36811.70238023,0.00040657,2]
[314424978,1708331466170,-706287.96965582,0.00040657,2]
[314424979,1708331466179,-1949.94751096,0.00040657,2]
[314424980,1708331466189,-1771.68761638,0.00040657,2]
[314424981,1708331466198,-6455.23998237,0.00040657,4]
[314424982,1708331466208,-133283.07081309,0.00040657,2]
[314424983,1708331466217,-2706.94256923,0.00040657,2]
[314424984,1708331466228,-5855.62,0.00040657,5]
[314424985,1708331466238,-58384.92709626,0.00040657,10]
[314424986,1708331466248,-13085.890879,0.00040657,2]
[314424987,1708331466258,-35432.2098575,0.00040657,2]
[314424988,1708331466268,-10302.598966,0.00040657,2]
[314424989,1708331466277,-5399.32854119,0.00040657,2]